[Event "Swiss Championship U16 2022"]
[Site "Biel"]
[Date "2022.07.18"]
[Round "1.7"]
[White "Doetsch-Thaler, Nicos"]
[Black "Saminskij, David"]
[Result "1-0"]
[ECO "C07"]
[WhiteElo "1837"]
[BlackElo "1469"]
[Annotator "NA COMBH"]
[PlyCount "117"]
[EventDate "2022.07.18"]
[EventType "swiss"]
[EventCountry "SUI"]
[SourceTitle "playchess.com"]
[Source "ChessBase"]
[SourceQuality "1"]
[TimeControl "5400+30"]

1. e4 {[%emt 0:00:05]} e6 {[%emt 0:00:28]} 2. d4 {[%emt 0:00:33]} d5 {[%emt 0:00:08]} 3. Nd2 {[%emt 0:00:11]} c5 {[%emt 0:00:48]} 4. exd5 {[%emt 0:00:50]} Qxd5 {[%emt 0:00:29]} 5. Ngf3 {[%emt 0:01:08]} Nf6 {[%emt 0:01:57]} 6. Bc4 {[%emt 0:05:50]} Qh5 {[%emt 0:01:39]} 7. O-O {[%emt 0:03:23]} b6 {[%emt 0:03:09]} 8. c3 {[%emt 0:18:54]} Bb7 {[%emt 0:03:27]} 9. Bb5+ {[%emt 0:23:14]} Nbd7 {[%emt 0:00:14]} 10. Re1 {[%emt 0:06:13]} cxd4 {[%emt 0:01:32]} 11. Re5 {[%emt 0:01:09]} Qg6 {[%emt 0:13:42]} 12. Rg5 {[%emt 0:13:18]} Qh6 {[%emt 0:00:00]} 13. Nc4 {[%emt 0:03:38]} Rc8 {[%emt 0:23:02]} 14. Nfe5 {[%emt 0:12:39]} Qh4 {[%emt 0:04:59]} 15. Nxd7 {[%emt 0:02:07]} Nxd7 {[%emt 0:00:06]} 16. Rg4 {[%emt 0:00:17]} Qe7 {[%emt 0:04:17]} 17. Ne5 {[%emt 0:01:09]} Rc5 {[%emt 0:01:15]} 18. Bxd7+ {[%emt 0:00:00]} Kd8 {[%emt 0:00:07]} 19. cxd4 {[%emt 0:01:03]} Rxe5 {[%emt 0:03:58]} 20. dxe5 {[%emt 0:00:09]} Qxd7 {[%emt 0:00:09]} 21. Bg5+ {[%emt 0:00:53]} Ke8 {[%emt 0:02:40]} 22. Qxd7+ {[%emt 0:00:42]} Kxd7 {[%emt 0:00:07]} 23. Be3 {[%emt 0:00:17]} h5 {[%emt 0:01:49]} 24. Ra4 {[%emt 0:01:34]} Bc5 {[%emt 0:01:52]} 25. Bxc5 {[%emt 0:00:00]} bxc5 {[%emt 0:00:05]} 26. Rxa7 {[%emt 0:00:00]} Kc6 {[%emt 0:00:10]} 27. Rd1 {[%emt 0:00:34]} Kb6 {[%emt 0:00:22]} 28. Ra3 {[%emt 0:00:22]} Bd5 {[%emt 0:00:12]} 29. Rg3 {[%emt 0:01:34]} g6 {[%emt 0:00:50]} 30. a3 {[%emt 0:00:18]} Rb8 {[%emt 0:00:28]} 31. Kf1 {[%emt 0:01:05]} c4 {[%emt 0:00:10]} 32. Ke2 {[%emt 0:00:31]} Kc5 {[%emt 0:00:09]} 33. Rd2 {[%emt 0:00:33]} Be4 {[%emt 0:01:21]} 34. Rc3 {[%emt 0:00:52]} Bxg2 {[%emt 0:01:16]} 35. Rdc2 {[%emt 0:01:04]} Kd5 {[%emt 0:03:26]} 36. Rxc4 {[%emt 0:00:34]} Kxe5 {[%emt 0:00:06]} 37. b4 {[%emt 0:00:29]} Bd5 {[%emt 0:00:52]} 38. Rc5 {[%emt 0:00:07]} Kd4 {[%emt 0:00:32]} 39. Rd2+ {[%emt 0:00:39]} Ke5 {[%emt 0:00:16]} 40. Ke3 {[%emt 0:00:53]} Ra8 {[%emt 0:00:53]} 41. Rd3 {[%emt 0:00:20]} f5 {[%emt 0:00:51]} 42. f4+ {[%emt 0:00:09]} Kf6 {[%emt 0:00:47]} 43. h4 {[%emt 0:00:16]} Be4 {[%emt 0:00:26]} 44. Rdc3 {[%emt 0:00:19]} Rd8 {[%emt 0:00:12]} 45. b5 {[%emt 0:01:16]} Rd1 {[%emt 0:00:09]} 46. Rc8 {[%emt 0:00:43]} e5 {[%emt 0:01:57]} 47. fxe5+ {[%emt 0:00:20]} Kxe5 {[%emt 0:00:13]} 48. Re8+ {[%emt 0:00:22]} Kf6 {[%emt 0:00:10]} 49. b6 {[%emt 0:00:31]} Re1+ {[%emt 0:00:45]} 50. Kf2 {[%emt 0:00:18]} Rb1 {[%emt 0:00:09]} 51. Rb8 {[%emt 0:00:20]} Ke5 {[%emt 0:02:20]} 52. a4 {[%emt 0:01:15]} Kd4 {[%emt 0:00:07]} 53. Ra3 {[%emt 0:00:58]} f4 {[%emt 0:00:16]} 54. Rd8+ {[%emt 0:00:36]} Bd5 {[%emt 0:00:09]} 55. Ra2 {[%emt 0:00:34]} Kc4 {[%emt 0:02:02]} 56. Rc2+ {[%emt 0:00:27]} Kd3 {[%emt 0:00:06]} 57. Rxd5+ {[%emt 0:00:35]} Kxc2 {[%emt 0:00:06]} 58. Rb5 {[%emt 0:00:01]} Rd1 {[%emt 0:02:13]} 59. b7 {[%emt 0:00:11]} 1-0

[Event "Swiss Championship U16 2022"]
[Site "Biel"]
[Date "2022.07.18"]
[Round "1.8"]
[White "Gendre, Arthur"]
[Black "Rotunno, Flavio"]
[Result "0-1"]
[ECO "E11"]
[WhiteElo "1414"]
[BlackElo "1901"]
[Annotator "TA"]
[PlyCount "82"]
[EventDate "2022.07.18"]
[EventType "swiss"]
[EventCountry "SUI"]
[SourceTitle "playchess.com"]
[Source "ChessBase"]
[SourceQuality "1"]
[TimeControl "5400+30"]

{[%evp 9,82,9,18,13,16,17,12,8,41,-11,-8,-8,-8,-5,8,-40,-11,-43,-40,-47,-54,-50,0,-21,5,-36,-30,-64,8,-34,-46,-42,-41,-21,-37,-133,-123,-237,-255,-246,-100,-117,-97,-107,-87,-75,-56,-69,-59,-48,-69,-57,-77,-302,-299,-314,-295,-311,-315,-526,-514,-504,-504,-487,-377,-315,-315,-357,-302,-318,-312,-442,-430,-326,-263]} 1. d4 {[%emt 0:00:03]} Nf6 {[%emt 0:00:02]} 2. c4 {[%emt 0:00:17]} e6 {[%emt 0:00:42]} 3. Nf3 {[%emt 0:00:04]} Bb4+ {[%emt 0:00:12]} 4. Bd2 {[%emt 0:00:11]} c5 {[%emt 0:00:20]} 5. a3 {[%emt 0:00:24]} Bxd2+ {[%emt 0:00:00]} 6. Qxd2 {[%emt 0:00:19] E11: Bogo-Indian.} cxd4 {[%emt 0:01:48]} 7. Nxd4 {[%emt 0:02:40]} O-O {[%emt 0:00:34]} 8. Nc3 {[%emt 0:02:27] The position is equal.} a6 {[%emt 0:03:46] [#]} 9. c5 $146 {[%emt 0:01:29]} (9. Rd1 $14) ({Predecessor:} 9. e4 d6 10. Be2 b6 11. O-O Bb7 12. f3 Qc7 13. Rfd1 Rd8 14. Rac1 Nbd7 15. b4 {1-0 (77) Sanchez Alvares,K (2194)-Leitao,R (2592) Chess.com INT 2022}) 9... d6 $11 {[%emt 0:00:23]} 10. cxd6 {[%emt 0:03:39]} Qxd6 {[%emt 0:05:14]} 11. Nf3 {[%emt 0:01:58]} Qxd2+ {[%emt 0:01:39]} 12. Kxd2 {[%emt 0:00:41]} (12. Nxd2 $11 Rd8 13. g3) 12... Nc6 {[%emt 0:00:39]} 13. e3 {[%emt 0:00:40]} Rd8+ {[%emt 0:00:13]} 14. Kc2 {[%emt 0:00:08]} e5 {[%emt 0:02:47]} 15. Bd3 {[%emt 0:07:36] [#] Inhibits Bf5.} b5 {[%emt 0:02:39]} (15... Rxd3 $1 $15 16. Kxd3 e4+ 17. Nxe4 Bf5) 16. b4 {[%emt 0:00:24]} ({Don't go for} 16. Be4 $2 Nxe4 17. Nxe4 Bf5 $19) 16... Bb7 {[%emt 0:03:02][%cal Oe5e4]} 17. Be2 {[%emt 0:09:32]} Rac8 {[%emt 0:04:39][%cal Of6e4]} 18. Rhd1 {[%emt 0:05:00] [#]} e4 {[%emt 0:03:30]} (18... Ne4 $1 $15 19. Nxe4 Nd4+ 20. Kb2 Bxe4 21. Nxd4 exd4) 19. Nd2 {[%emt 0:15:37]} Ne5 {[%emt 0:12:27]} 20. Kb2 {[%emt 0:02:45]} Nd3+ {[%emt 0:00:14]} 21. Bxd3 {[%emt 0:00:00]} exd3 {[%emt 0:00:49]} (21... Rxd3 $2 22. Ndxe4 $1 {[%mdl 512]} Bxe4 23. Nxe4 $16) 22. f3 {[%emt 0:01:18] [#]} (22. e4 $15) 22... Nd5 $1 $17 {[%emt 0:06:09] Black is more active.} 23. Rac1 {[%emt 0:00:25]} (23. Nxd5 $17 Rc2+ 24. Kb1 Bxd5 25. a4) 23... Nxe3 $19 {[%emt 0:00:23]} 24. Rg1 {[%emt 0:01:28]} Nc4+ {[%emt 0:00:55]} (24... f5 $19 {Hoping for ...Rc7.} 25. Rce1 Re8) 25. Nxc4 $17 {[%emt 0:01:27]} bxc4 {[%emt 0:00:30]} 26. Rcd1 {[%emt 0:01:17]} Bc6 {[%emt 0:00:57]} 27. Rge1 {[%emt 0:01:11]} Re8 {[%emt 0:03:11]} 28. Kc1 {[%emt 0:02:50]} f6 {[%emt 0:00:07]} 29. Kd2 {[%emt 0:00:15]} Kf7 {[%emt 0:00:34]} 30. Rxe8 {[%emt 0:00:00]} Rxe8 {[%emt 0:00:20]} 31. Re1 $2 {[%emt 0:09:03] Loses the game.} (31. a4 $17) 31... Rxe1 $19 {[%emt 0:00:10]} 32. Kxe1 {[%emt 0:00:09][%mdl 4096] Endgame KB-KN} Ke6 {[%emt 0:00:09] Strongly threatening ...Ke5.} 33. Kd2 {[%emt 0:00:08]} Ke5 {[%emt 0:00:44] White must now prevent ...Kd4.} 34. a4 $2 {[%emt 0:00:09]} (34. Ke3 {was called for.}) 34... Kd4 {[%emt 0:01:39]} 35. b5 {[%emt 0:00:47]} axb5 {[%emt 0:00:09]} 36. axb5 {[%emt 0:01:08]} Bb7 {[%emt 0:16:45]} 37. b6 {[%emt 0:00:40]} Kc5 {[%emt 0:00:10]} 38. Na4+ {[%emt 0:00:10]} Kb4 {[%emt 0:01:34]} 39. Nc3 {[%emt 0:00:34]} Ka5 {[%emt 0:00:40]} 40. Nd1 {[%emt 0:00:08]} (40. Ke3 $142) 40... Kxb6 {[%emt 0:00:00]} 41. Kc3 {[%emt 0:01:24]} Bd5 {[%emt 0:01:20] Weighted Error Value: White=0.45/Black=0.14 (very precise)} 0-1

[Event "Swiss Championship U16 2022"]
[Site "Biel"]
[Date "2022.07.18"]
[Round "2.1"]
[White "Erne, Raphael"]
[Black "Zargarov, Mikayel"]
[Result "1/2-1/2"]
[ECO "A26"]
[WhiteElo "2060"]
[BlackElo "1994"]
[Annotator "TA"]
[PlyCount "120"]
[EventDate "2022.07.18"]
[EventType "swiss"]
[EventCountry "SUI"]
[SourceTitle "playchess.com"]
[Source "ChessBase"]
[SourceQuality "1"]
[TimeControl "5400+30"]

{[%evp 15,120,0,8,10,31,32,41,23,32,26,29,-1,41,33,50,10,12,13,49,16,16,17,45,41,38,25,59,-3,121,70,163,150,218,225,239,222,237,204,175,0,156,163,272,237,414,412,523,525,524,510,633,416,444,413,412,389,396,366,336,312,308,219,219,219,219,169,239,239,239,239,221,221,232,232,232,232,181,181,232,232,232,232,232,197,181,162,147,127,127,127,127,127,127,14,45,0,127,0,8,0,127,54,128,82,128,10,10]} 1. c4 {[%emt 0:00:04]} e5 {[%emt 0:00:08]} 2. g3 {[%emt 0:00:08]} Nc6 {[%emt 0:00:14]} 3. Nc3 {[%emt 0:00:13]} g6 {[%emt 0:00:08]} 4. Bg2 {[%emt 0:00:33]} Bg7 {[%emt 0:01:09]} 5. Nf3 {[%emt 0:00:55]} d6 {[%emt 0:01:10]} 6. d3 {[%emt 0:04:04]} Nge7 {[%emt 0:01:29]} 7. Rb1 {[%emt 0:14:51]} O-O {[%emt 0:00:52]} 8. O-O {[%emt 0:01:33]} h6 {[%emt 0:01:49]} 9. b4 {[%emt 0:02:55] A26: English Opening vs King's Indian with ...Nc6 and d3.} Nd4 {[%emt 0:08:55] [#]} 10. a4 $146 {[%emt 0:04:10]} ({Predecessor:} 10. Nxd4 exd4 11. Nd5 Nxd5 12. cxd5 h5 13. Bb2 Re8 14. Rc1 Bg4 15. Re1 Qd7 16. Rc4 a5 17. bxa5 Rxa5 {½-½ (82) O'Gorman,T (2401)-Lutsko,A (2392) Dortmund 2022}) 10... c6 {[%emt 0:10:53]} 11. Ne1 {[%emt 0:07:56] White is slightly better.} f5 {[%emt 0:04:45]} 12. e3 {[%emt 0:00:35]} Ne6 {[%emt 0:02:09]} 13. Nc2 {[%emt 0:20:03]} d5 {[%emt 0:05:55]} (13... f4 {seems wilder.} 14. b5 Ng5 15. h4 Nh3+) 14. cxd5 {[%emt 0:04:16]} cxd5 {[%emt 0:00:46]} 15. d4 {[%emt 0:02:56]} e4 {[%emt 0:05:47]} 16. b5 {[%emt 0:03:43]} b6 {[%emt 0:12:15]} 17. a5 {[%emt 0:02:54]} bxa5 {[%emt 0:03:58]} 18. Ba3 {[%emt 0:04:30]} Bf6 {[%emt 0:04:07]} 19. Na1 {[%emt 0:03:01][%mdl 1024] White has compensation.} Rb8 {[%emt 0:05:57]} 20. Qb3 {[%emt 0:01:56]} Bb7 {[%emt 0:05:01]} 21. Rfc1 {[%emt 0:04:43]} (21. Qa2 $14) 21... Qd7 {[%emt 0:02:52]} (21... Rf7 $1 $11) 22. Qa4 {[%emt 0:01:00]} (22. Qa2 $16) 22... a6 {[%emt 0:00:35]} (22... f4 $14) 23. Bf1 $18 {[%emt 0:05:34][%cal Bg2f1,Bf1b5,Bb5d7][%mdl 32]} Ra8 {[%emt 0:04:20]} (23... f4 $16 {was called for.}) 24. Nb3 {[%emt 0:04:00]} axb5 {[%emt 0:00:26]} 25. Bxb5 {[%emt 0:00:17]} Qd8 {[%emt 0:03:09]} 26. Bd7 {[%emt 0:01:17]} Bc8 {[%emt 0:04:30]} 27. Bb5 {[%emt 0:01:10]} Bb7 $1 {[%emt 0:02:08]} 28. Nc5 $36 {[%emt 0:00:21][%mdl 2048] Keeping Black busy.} Nxc5 {[%emt 0:00:43]} (28... Bc8 $142 29. Bc6 Nxc5 30. Bxc5 Nxc6) 29. dxc5 {[%emt 0:02:27] [#] c6 is the strong threat.} (29. Bxc5 $6 Rf7 30. Bd7 Bc8 $16) 29... Rf7 $2 {[%emt 0:00:59]} (29... Bxc3 30. c6 Bc8) 30. c6 {[%emt 0:01:49]} Ba6 {[%emt 0:01:16]} 31. c7 {[%emt 0:00:29]} Qxc7 {[%emt 0:02:47] [#]} 32. Nxd5 {[%emt 0:00:23][%mdl 512]} Qd8 {[%emt 0:03:22]} (32... Nxd5 33. Rxc7) 33. Bxa6 {[%emt 0:00:27]} Rxa6 {[%emt 0:00:55]} 34. Qc4 {[%emt 0:01:00]} Re6 {[%emt 0:00:51]} 35. Nxe7+ {[%emt 0:00:06]} Rexe7 {[%emt 0:00:16]} 36. Bxe7 {[%emt 0:00:13]} Qxe7 {[%emt 0:00:59]} 37. Qc8+ {[%emt 0:00:51]} Kg7 {[%emt 0:01:25]} 38. Qc5 {[%emt 0:00:51]} ({Much less strong is} 38. Rb8 Rf8 $18) 38... Qxc5 {[%emt 0:00:05]} 39. Rxc5 {[%emt 0:00:17][%mdl 4096] Endgame KRR-KRB} Ra7 {[%emt 0:01:09]} 40. Rcb5 {[%emt 0:00:52]} Be7 {[%emt 0:00:34]} (40... a4 $2 41. Rb7+ Rxb7 42. Rxb7+ Kf8 43. Ra7 $18) (40... h5 $142 41. Rb7+ Rxb7 42. Rxb7+ Kh6) 41. Rb7 {[%emt 0:01:02]} Rxb7 {[%emt 0:00:15]} 42. Rxb7 {[%emt 0:00:21] KR-KB} Kf6 {[%emt 0:00:26]} 43. Rb6+ {[%emt 0:00:06]} Kf7 {[%emt 0:00:25]} 44. Ra6 {[%emt 0:00:30]} Bb4 {[%emt 0:01:13]} 45. f3 {[%emt 0:00:40]} exf3 {[%emt 0:00:11]} 46. Kf2 {[%emt 0:00:40] Inhibits Be1+.} Bc3 {[%emt 0:00:10]} (46... h5 $142 47. Kxf3 Kg7) 47. Kxf3 {[%emt 0:00:41]} h5 {[%emt 0:00:57]} 48. h3 {[%emt 0:00:29]} Bd2 {[%emt 0:00:42]} 49. Rd6 {[%emt 0:00:31]} Bb4 {[%emt 0:00:22]} 50. Rc6 {[%emt 0:00:36]} Bd2 {[%emt 0:00:31]} 51. Rc2 {[%emt 0:00:03]} Bb4 {[%emt 0:00:39]} 52. g4 {[%emt 0:00:53]} hxg4+ {[%emt 0:00:00]} 53. hxg4 {[%emt 0:00:04]} Kf6 {[%emt 0:01:11]} 54. Rg2 {[%emt 0:00:38]} (54. Rc6+ $16 Kg5 55. gxf5 gxf5 56. Rb6) 54... Bc3 {[%emt 0:00:35]} 55. Rc2 {[%emt 0:00:17]} (55. g5+ $14 Kf7 56. Rh2) 55... Bb4 $16 {[%emt 0:00:00]} 56. Kf4 {[%emt 0:00:42] Threatens to win with Rc6+.} Bd6+ {[%emt 0:00:21]} 57. Kf3 {[%emt 0:00:10]} Bb4 {[%emt 0:00:37]} 58. Rc4 {[%emt 0:01:32]} (58. Rc6+ $16 Kg5 59. gxf5 gxf5 60. Rb6) 58... Kg5 {[%emt 0:00:42]} ({Better is} 58... Bd6 $14) 59. Rd4 {[%emt 0:00:42]} ({White should play} 59. gxf5 Kxf5 60. e4+ Ke5 61. Ke3) 59... Bc3 {[%emt 0:00:21]} (59... Kf6 $142) 60. Rd3 {[%emt 0:00:25]} (60. Rd5 $16) 60... fxg4+ {[%emt 0:00:39] Black defended with fortune.  Weighted Error Value: White=0.36/Black=0.25 (precise)} 1/2-1/2

[Event "Swiss Championship U16 2022"]
[Site "Biel"]
[Date "2022.07.18"]
[Round "2.2"]
[White "Kostov, Kyrill"]
[Black "Doetsch-Thaler, Nicos"]
[Result "1-0"]
[ECO "B48"]
[WhiteElo "2008"]
[BlackElo "1837"]
[Annotator "TA"]
[PlyCount "135"]
[EventDate "2022.07.18"]
[EventType "swiss"]
[EventCountry "SUI"]
[SourceTitle "playchess.com"]
[Source "ChessBase"]
[SourceQuality "1"]
[TimeControl "5400+30"]

{[%evp 15,135,9,22,0,17,-12,-12,-25,0,-22,-7,-4,1,-77,-79,-75,-75,-107,-123,-123,-68,-111,-79,-143,-146,-149,-90,-109,-97,-87,-35,-27,-27,-52,-38,-29,-40,-46,-25,-21,-17,-140,0,0,27,33,20,17,38,0,14,14,20,-41,-41,-31,-43,-56,-42,-52,-49,-135,-138,-138,-132,-131,-132,-122,-119,-175,-70,-64,0,0,0,0,0,0,6,0,0,0,0,0,0,0,0,0,0,0,0,0,6087,5177,2823,2878,5285,6219,5406,3573,29963,29963,29974,1972,29982,29983,29983,29975,29975,29976,29976,29977,29977,29978,29979,29980,29980,29981,29981,29981,29985,29983]} 1. e4 {[%emt 0:00:03]} c5 {[%emt 0:00:22]} 2. Nf3 {[%emt 0:00:07]} e6 {[%emt 0:00:16]} 3. d4 {[%emt 0:00:07]} cxd4 {[%emt 0:00:11]} 4. Nxd4 {[%emt 0:00:09]} Nc6 {[%emt 0:00:15]} 5. Nc3 {[%emt 0:00:34]} Qc7 {[%emt 0:00:21]} 6. Be2 {[%emt 0:11:09]} a6 {[%emt 0:00:53]} 7. Be3 {[%emt 0:07:10]} Nf6 {[%emt 0:01:17]} 8. a3 {[%emt 0:04:45]} b5 {[%emt 0:11:09]} 9. O-O {[%emt 0:06:26] B48: Sicilian: Taimanov: 5 Nc3 Qc7 6 Be3 a6 without Be2.} Be7 {[%emt 0:08:42]} 10. Kh1 {[%emt 0:06:08]} Bb7 {[%emt 0:09:01]} 11. f4 {[%emt 0:04:24] The position is equal.} O-O {[%emt 0:02:54]} 12. e5 {[%emt 0:05:24]} Ne8 {[%emt 0:01:40]} 13. Bf3 {[%emt 0:09:16]} d6 {[%emt 0:13:00] [#]} 14. exd6 $146 {[%emt 0:02:19]} (14. Qe2 $11 {keeps the balance.}) ({Predecessor:} 14. Nxc6 Bxc6 15. Bxc6 Qxc6 16. Qg4 Qc4 17. Qg3 Rc8 18. Rf2 dxe5 19. Rd1 exf4 20. Bxf4 {0-1 (67) Malicka,M (2116)-Hommel,N (1864) Kouty nad Desnou 2017}) 14... Nxd6 $17 {[%emt 0:01:56]} 15. Qe2 {[%emt 0:08:56]} Bf6 {[%emt 0:08:13]} 16. Rad1 {[%emt 0:04:12][%cal Od4e6]} Rad8 {[%emt 0:04:55]} 17. Na2 {[%emt 0:11:49]} Ne7 {[%emt 0:09:07]} (17... Bxd4 $17 18. Bxd4 Nxd4 19. Rxd4 Bxf3 20. Rxf3 Nc4) 18. Nb4 {[%emt 0:03:53]} a5 {[%emt 0:02:14]} 19. Na2 {[%emt 0:04:01]} (19. Nd3 $142) 19... Nd5 {[%emt 0:00:19]} 20. c3 {[%emt 0:01:44]} Qc4 {[%emt 0:05:29]} (20... Rb8 $142 21. Nc1 b4 22. cxb4 axb4) 21. Qxc4 {[%emt 0:01:06]} Nxc4 {[%emt 0:00:23]} 22. Bc1 {[%emt 0:00:57]} Ba6 {[%emt 0:03:53]} ({Black should try} 22... Bxd4 $17 23. cxd4 Rd7 24. Bxd5 Rxd5) 23. Rfe1 $15 {[%emt 0:00:43]} Ne7 {[%emt 0:05:04]} 24. Nb3 {[%emt 0:01:25]} Nf5 {[%emt 0:01:53]} 25. Nc5 {[%emt 0:02:40]} Bc8 {[%emt 0:00:14]} 26. b3 {[%emt 0:00:59]} Nb6 {[%emt 0:01:08][%cal Bc4b6,Bb6d5,Bd5e3][%mdl 32]} 27. g4 {[%emt 0:01:28]} Be7 {[%emt 0:04:21]} 28. Nd3 {[%emt 0:01:34]} (28. Rxd8 $11 Rxd8 29. Nxe6 Bxe6 30. gxf5) 28... Nd6 {[%emt 0:00:17]} (28... Nh4 $17 29. Be4 Nd5) 29. Ne5 $11 {[%emt 0:00:09]} Bf6 {[%emt 0:01:22]} 30. Be3 {[%emt 0:01:01]} Nd5 {[%emt 0:01:21]} 31. Nc6 {[%emt 0:00:19]} Rd7 {[%emt 0:00:29]} 32. Ne5 {[%emt 0:00:36]} Bxe5 {[%emt 0:02:11]} 33. fxe5 {[%emt 0:00:01]} Nb7 {[%emt 0:00:18]} 34. c4 {[%emt 0:00:50]} (34. Bd4 $11) 34... bxc4 $15 {[%emt 0:00:32]} 35. bxc4 {[%emt 0:00:28]} Nxe3 {[%emt 0:00:12]} 36. Rxd7 {[%emt 0:00:26]} Bxd7 {[%emt 0:00:11]} (36... Nc2 {keeps more tension.} 37. Rc7 Nxe1 38. Be4 f6) 37. Rxe3 {[%emt 0:00:21]} Nc5 {[%emt 0:00:11]} 38. Re1 {[%emt 0:01:13]} (38. Nc3 $15) 38... Rb8 $17 {[%emt 0:00:24] [#] Hoping for ...Rb3.} 39. Nc1 {[%emt 0:00:16] Against Rb3} Kf8 {[%emt 0:01:53]} 40. Kg2 {[%emt 0:00:21]} Rb2+ {[%emt 0:00:21]} 41. Re2 {[%emt 0:00:17]} Rb1 {[%emt 0:00:20]} 42. Re1 {[%emt 0:00:13]} (42. Rc2 $17 {might work better.}) 42... Ra1 {[%emt 0:00:24]} (42... Ba4 $19 {Strongly threatening ...Bc2.} 43. Nd3 Rxe1 44. Nxe1 Nd7) 43. Nd3 $1 $15 {[%emt 0:01:00]} Ra2+ {[%emt 0:00:04]} (43... Rxe1 $15 44. Nxe1 Ba4) 44. Re2 $11 {[%emt 0:00:05]} Rxe2+ {[%emt 0:00:51]} 45. Bxe2 {[%emt 0:00:01]} Nxd3 {[%emt 0:01:24]} 46. Bxd3 {[%emt 0:00:04][%mdl 4096] Endgame KB-KB} Ke7 {[%emt 0:00:19]} 47. Kf3 {[%emt 0:00:08]} ({Much weaker is} 47. Bxh7 g6 $15) 47... h6 {[%emt 0:00:28]} 48. Ke3 {[%emt 0:01:14]} Bc6 {[%emt 0:00:50]} 49. Be2 {[%emt 0:00:16]} Kd7 {[%emt 0:00:42]} 50. Kd4 {[%emt 0:00:23]} Kc7 {[%emt 0:00:32]} 51. Kc5 {[%emt 0:00:46]} f5 {[%emt 0:00:20]} 52. gxf5 {[%emt 0:01:06]} exf5 {[%emt 0:00:00]} 53. e6 {[%emt 0:00:34] And now Bh5 would win.} g5 $2 {[%emt 0:00:41][%mdl 8192] [#]} (53... f4 $11) 54. Bh5 $1 $18 {[%emt 0:00:58]} f4 {[%emt 0:00:55]} 55. e7 {[%emt 0:00:16]} g4 {[%emt 0:00:09]} 56. Bxg4 {[%emt 0:00:31] Intending Bh5 and mate.} Be8 {[%emt 0:00:08] Against Bh5} 57. Kd5 {[%emt 0:00:16]} h5 {[%emt 0:00:09]} 58. Bd1 {[%emt 0:00:23]} h4 {[%emt 0:00:34]} 59. Ke5 {[%emt 0:00:14]} (59. Ke6 $142 h3 60. c5 a4 61. Ke5 f3 62. Bxf3 Kd7 63. Kf6 Kc8 64. Bd5) 59... Bf7 {[%emt 0:01:16]} 60. Kf6 {[%emt 0:00:40] White mates.} Be8 {[%emt 0:00:14]} 61. Kg7 {[%emt 0:00:09]} Kd6 {[%emt 0:01:16]} 62. Kf8 {[%emt 0:00:05]} Bc6 {[%emt 0:00:25]} 63. e8=Q {[%emt 0:01:00]} Bxe8 {[%emt 0:00:05]} 64. Kxe8 {[%emt 0:00:05]} Kc5 {[%emt 0:00:12]} 65. Be2 {[%emt 0:00:08]} f3 {[%emt 0:00:12]} 66. Bf1 {[%emt 0:01:17]} Kd4 {[%emt 0:01:24]} 67. Kd7 {[%emt 0:00:07]} Ke3 {[%emt 0:00:37]} 68. c5 {[%emt 0:00:23] White used his chance.  Weighted Error Value: White=0.23 (precise) /Black=0.40} 1-0

[Event "Swiss Championship U16 2022"]
[Site "Biel"]
[Date "2022.07.18"]
[Round "2.3"]
[White "Rotunno, Flavio"]
[Black "Kasipour Azbari, Seyed Arvin"]
[Result "1/2-1/2"]
[ECO "D45"]
[WhiteElo "1901"]
[BlackElo "1944"]
[Annotator "TA"]
[PlyCount "70"]
[EventDate "2022.07.18"]
[EventType "swiss"]
[EventCountry "SUI"]
[SourceTitle "playchess.com"]
[Source "ChessBase"]
[SourceQuality "1"]
[TimeControl "5400+30"]

{[%evp 17,70,0,28,28,27,20,29,32,19,0,0,-11,46,42,42,43,50,47,61,58,58,60,77,77,82,63,80,74,71,63,62,55,65,62,78,80,128,117,123,116,120,109,102,85,82,89,100,85,85,60,63,64,77,0,0]} 1. d4 {[%emt 0:00:33]} d5 {[%emt 0:00:42]} 2. c4 {[%emt 0:00:00]} c6 {[%emt 0:00:05]} 3. Nc3 {[%emt 0:00:00]} Nf6 {[%emt 0:00:17]} 4. Nf3 {[%emt 0:00:05]} e6 {[%emt 0:00:12]} 5. e3 {[%emt 0:00:07]} Nbd7 {[%emt 0:00:37]} 6. Qc2 {[%emt 0:01:45]} Bd6 {[%emt 0:00:08]} 7. b3 {[%emt 0:02:04]} O-O {[%emt 0:02:42]} 8. Be2 {[%emt 0:07:43]} Re8 {[%emt 0:00:35]} 9. O-O {[%emt 0:00:13]} e5 {[%emt 0:00:30]} 10. cxd5 {[%emt 0:02:33] D45: Semi-Slav: 5 e3.} cxd5 {[%emt 0:10:03]} 11. Nb5 {[%emt 0:00:00][%cal Bc3b5,Bb5d4,Bd4e2][%mdl 32]} Bb8 {[%emt 0:08:33]} 12. dxe5 {[%emt 0:03:26] White has an edge.} Nxe5 {[%emt 0:01:50]} 13. Nxe5 {[%emt 0:02:52]} Bxe5 {[%emt 0:00:04]} 14. Bb2 {[%emt 0:12:45] [#]} Bxb2 {[%emt 0:09:19]} (14... Bf5 $1 $11 15. Qxf5 Bxb2) 15. Qxb2 $14 {[%emt 0:00:05]} a6 {[%emt 0:01:54]} 16. Nd4 {[%emt 0:05:42] [#]} Qb6 $146 {[%emt 0:09:19]} ({Predecessor:} 16... Bg4 17. Bxg4 Nxg4 18. h3 Nf6 19. Rac1 Qd7 20. Rc2 Rac8 {½-½ (20) Huang,M (1968)-Hu,Y (1976) Jiangmen 2018}) 17. Bf3 {[%emt 0:12:28]} Bg4 {[%emt 0:03:26]} 18. Bxg4 {[%emt 0:00:00]} Nxg4 {[%emt 0:04:36]} 19. h3 {[%emt 0:00:38]} Ne5 {[%emt 0:03:10]} 20. Rfd1 {[%emt 0:07:12]} Rac8 {[%emt 0:04:27]} 21. Ne2 {[%emt 0:00:00]} Qf6 {[%emt 0:07:59][%cal Oe5f3] [#] Strongly threatening ...Nf3+!} 22. Qd2 {[%emt 0:03:32]} Red8 {[%emt 0:02:26]} 23. Rac1 {[%emt 0:00:00]} Rxc1 {[%emt 0:06:20]} 24. Qxc1 {[%emt 0:00:00]} Nc6 {[%emt 0:03:13]} 25. Nd4 {[%emt 0:06:04]} Nxd4 {[%emt 0:08:24]} 26. Rxd4 {[%emt 0:01:44][%mdl 4096] Endgame KQR-KQR} Qb6 {[%emt 0:04:57]} (26... Qe5 $142) 27. Qd2 $16 {[%emt 0:02:04]} Qc5 {[%emt 0:01:14]} 28. e4 {[%emt 0:00:00][%cal Rd4d5]} Rc8 {[%emt 0:00:38]} 29. Rxd5 {[%emt 0:00:00]} Qc1+ {[%emt 0:00:10]} 30. Qxc1 {[%emt 0:00:10]} Rxc1+ {[%emt 0:00:00] KR-KR} 31. Kh2 {[%emt 0:00:26][%cal Rd5d8]} g6 {[%emt 0:05:06]} 32. Rd7 {[%emt 0:02:25] Hoping for f3.} Rc2 {[%emt 0:05:14][%csl LRa2,LRf2]} 33. f3 {[%emt 0:05:08] Threatens to win with a4.} b5 {[%emt 0:00:00]} 34. a4 {[%emt 0:00:07]} Rc3 {[%emt 0:00:00]} 35. axb5 {[%emt 0:00:52]} ({White should play} 35. a5 $16) 35... axb5 {[%emt 0:02:02] Weighted Error Value: White=0.09 (flawless) /Black=0.13 (very precise)} 1/2-1/2